Cogmind - Beta 13 @@@ ROGUE MODE // 2024.04.13 @ 18:14:44 Player: double j Result: Destroyed by G-50 Soldier with Heavy Laser Performance ------------- Evolutions (4) 2000 Regions Visited (12) 2400 Robots Destroyed (24) 120 Value Destroyed (614) 614 Prototype IDs (12) 240 Alien Tech Used (0) 0 Bonus (1155) 1155 TOTAL SCORE: 6529 Bonus ------- Follower Combat Kills 575 Aligned with FarCom 300 Met Data Miner 300 Friendly Fire -20 Cogmind --------- Core Integrity 0/850 Matter 300/300 Energy 422/450 System Corruption 1% Temperature Cool (9) Movement Core (450) Ox8 Location -6/Extension Parts ------- > --- POWER (2) -------- (None) > --- PROPULSION (4) --- (None) > --- UTILITY (7) ------ Large Storage Unit Energy Well Advanced Terrain Scan Processor > --- WEAPON (2) ------- (None) > --- INVENTORY (15) --- Improved Heat Sink Microactuators Plasma Cutter Peak State ------------ > --- POWER ------------ Improved Deuterium Engine > --- PROPULSION ------- Carbon-fiber Leg Flexi-carbon Leg > --- UTILITY ---------- Improved Cryofiber Web Large Storage Unit Energy Well Advanced Weight Redist. System Improved Trap Scanner Advanced Terrain Scan Processor Microactuators > --- WEAPON ----------- Shock Bomb Launcher > --- INVENTORY -------- Light Nuclear Core Improved Heat Sink Improved Terrain Scanner Particle Gun Improved EM Pulse Cannon Proton Missile Launcher Plasma Cutter [Rating: 44] Favorites ----------- Power Light Ion Engine Engine Light Ion Engine Power Core Light Nuclear Core Propulsion Improved Carbon-fiber Leg Treads Light Treads Leg Improved Carbon-fiber Leg Utility Small Storage Unit Device Advanced Weight Redist. System Storage Small Storage Unit Processor Improved Terrain Scan Processor Hackware Authchip [R/Combat] Protection Layered Light Armor Plating Weapon Light Assault Rifle Energy Gun Particle Gun Energy Cannon Improved EM Pulse Cannon Ballistic Gun Light Assault Rifle Ballistic Cannon Gauss Cannon Launcher Shock Bomb Launcher Build | -11 -10 -10 -10 -9 -8 -7 -7 -7 -7 -6 -6 -6 ------- Run | Yrd Mat Min Exi Min Mat Fac Low Low Dat Pro Fac Ext Slots Evolved 8 | . . . . . 4 2 . . . . 2 . Power 1 | . . . . . . . . . . . 1 . Propulsion 2 | . . . . . 1 1 . . . . . . Utility 5 | . . . . . 3 1 . . . . 1 . Weapon . | . . . . . . . . . . . . . Parts Attached 67 | 5 3 . 1 1 12 7 6 11 1 5 11 4 Power 12 | 1 1 . 1 . 1 . 1 3 . 1 2 1 Engine 7 | 1 1 . 1 . . . 1 2 . . 1 . Core 5 | . . . . . 1 . . 1 . 1 1 1 Reactor . | . . . . . . . . . . . . . Propulsion 14 | 2 . . . . 6 . 1 2 . 2 . 1 Treads 4 | 2 . . . . 2 . . . . . . . Leg 10 | . . . . . 4 . 1 2 . 2 . 1 Wheel . | . . . . . . . . . . . . . Hover . | . . . . . . . . . . . . . Flight . | . . . . . . . . . . . . . Utility 21 | 1 1 . . . 3 4 2 2 . 2 6 . Device 12 | . 1 . . . 1 3 1 1 . 2 3 . Storage 3 | 1 . . . . . . . . . . 2 . Processor 2 | . . . . . . . 1 . . . 1 . Hackware 2 | . . . . . 1 1 . . . . . . Protection 2 | . . . . . 1 . . 1 . . . . Artifact . | . . . . . . . . . . . . . Weapon 20 | 1 1 . . 1 2 3 2 4 1 . 3 2 Energy Gun 6 | 1 . . . . 1 . 1 . 1 . 1 1 Energy Cannon 3 | . . . . . . . . 2 . . . 1 Ballistic Gun 4 | . 1 . . . 1 1 . 1 . . . . Ballistic Cannon 3 | . . . . . . 2 . 1 . . . . Launcher 4 | . . . . 1 . . 1 . . . 2 . Special Weapon . | . . . . . . . . . . . . . Impact Weapon . | . . . . . . . . . . . . . Slashing Weapon . | . . . . . . . . . . . . . Piercing Weapon . | . . . . . . . . . . . . . Special Melee Weapon . | . . . . . . . . . . . . . Unidentified Prototypes 1 | . . . . . . . 1 . . . . . Corrupted Parts 1 | . . . . . . . . 1 . . . . System Corruption 4 | . . . . . . . . 4 . . . . Parts Lost 32 | . . . . . 1 . 3 14 . . 2 12 Power 5 | . . . . . . . . 2 . . 1 2 Propulsion 8 | . . . . . . . 1 4 . . . 3 Utility 10 | . . . . . . . 2 4 . . . 4 Weapon 9 | . . . . . 1 . . 4 . . 1 3 Highest Loss Streak 12 | . . . . . 1 . 3 12 . . 2 11 To Critical Strikes . | . . . . . . . . . . . . . Average Slot Usage (%) 74 | . 80 85 85 85 81 76 80 47 38 57 69 70 Engine 6 | . 14 14 14 14 1 . 6 5 7 2 3 . Core 2 | . . . . . 7 7 . . . 4 2 5 Treads 8 | . 28 28 28 28 3 . . . . . . . Leg 12 | . . . . . 23 23 22 8 7 18 15 12 Device 14 | . 9 14 14 14 9 10 15 10 7 15 24 25 Storage 8 | . 14 14 14 14 9 7 7 2 . . 9 13 Processor 2 | . . . . . . . 5 7 7 7 6 6 Hackware 2 | . . . . . 8 10 . . . . . . Protection 3 | . . . . . 8 7 7 2 . . . . Energy Gun 2 | . 10 . . . 1 . 4 1 7 7 . 4 Ballistic Gun 5 | . 3 14 14 14 8 1 . . . . . . Launcher 1 | . . . . . . . 3 1 . . 4 1 Naked Turns . | . . . . . . . . . . . . . Heaviest Build 47 | 12 13 10 10 10 21 22 28 18 11 14 47 42 Greatest Support 63 | 40 40 40 40 40 54 63 63 54 19 54 54 44 Greatest Overweight (x) 8 | 3 . . . . 6 . . 3 . . 1 8 Average Overweight (x) . | 1 . . . . . . . . . . . . Largest Inventory Capacity 15 | 8 8 8 8 8 8 8 8 8 5 5 15 15 Average Capacity 8 | 7 8 8 8 8 8 8 8 5 5 5 13 15 Most Carried 7 | 3 2 3 5 5 6 7 7 5 4 5 7 6 Average Carried 4 | . 1 2 3 3 5 5 5 3 4 4 6 5 Final Capacity 15 | 8 8 8 8 8 8 8 8 5 5 5 15 15 Final Carried 6 | 1 1 3 3 5 5 6 5 4 4 5 6 3 Class Distribution -------------------- 78% | Mutant 15% | Scavenger-Mutant 3% | Skirmisher Dominant Class ---------------- Mutant | -10/Materials Mutant | -10/Mines Mutant | -10/Exiles Mutant | -9/Mines Mutant | -8/Materials Mutant | -7/Factory Mutant | -7/Lower Caves Mutant | -7/Lower Caves Mutant | -7/Data Miner Scavenger-Mutant | -6/Proximity Caves Scavenger-Mutant | -6/Factory Scavenger-Mutant | -6/Extension Resources | -11 -10 -10 -10 -9 -8 -7 -7 -7 -7 -6 -6 -6 ----------- Run | Yrd Mat Min Exi Min Mat Fac Low Low Dat Pro Fac Ext Matter Collected 1098 | 203 55 11 . 51 157 . 131 309 . 65 116 . Remotely . | . . . . . . . . . . . . . Salvage Created 524 | . 55 . . 25 53 . 52 285 . . 54 . Parts 35 | . 10 . . 5 5 . . 15 . . . . Haulers Intercepted . | . . . . . . . . . . . . . Recyclers Shooed . | . . . . . . . . . . . . . Parts Field Recycled . | . . . . . . . . . . . . . Retrieved Matter . | . . . . . . . . . . . . . Parts Self-Destructed 38 | . . . . . . . . 22 . 16 . . Prevented 1 | . . . . . . . . 1 . . . . Kills | -11 -10 -10 -10 -9 -8 -7 -7 -7 -7 -6 -6 -6 ------- Run | Yrd Mat Min Exi Min Mat Fac Low Low Dat Pro Fac Ext Combat Hostiles Destroyed 22 | . 3 . . 4 4 . 4 7 . . . . Guns 9 | . 2 . . . 4 . . 3 . . . . Cannons 6 | . . . . . . . 4 2 . . . . AOE 7 | . 1 . . 4 . . . 2 . . . . Classes Destroyed 5 | . 1 . . . . . 1 2 . . 1 . Watcher 2 | . . . . . . . . . . . 2 . Swarmer 17 | . 3 . . 4 4 . 4 2 . . . . Grunt 4 | . . . . . . . . 4 . . . . Sentry 1 | . . . . . . . . 1 . . . . Samaritan 1 | . . . . . . . 1 . . . . . Best Kill Streak 6 | . 3 . . 4 4 . 3 6 . . 1 . Combat Bots Only 6 | . 3 . . 4 4 . 3 6 . . . . Max Kills in Single Turn 4 | . 1 . . 4 1 . 1 2 . . 1 . Gunslinging . | . . . . . . . . . . . . . Exploded 4 | . 1 . . 4 . . . 2 . . . . Melee . | . . . . . . . . . . . . . Uniques/NPCs Destroyed . | . . . . . . . . . . . . . Combat | -11 -10 -10 -10 -9 -8 -7 -7 -7 -7 -6 -6 -6 -------- Run | Yrd Mat Min Exi Min Mat Fac Low Low Dat Pro Fac Ext Hostile Shots Fired 511 | . 40 . . 4 57 9 48 101 . 22 6 224 Missed 156 | . 13 . . . 17 3 9 28 . 9 1 76 Damage Taken 4594 | . 264 . . 31 412 82 593 1230 . 190 260 1532 Core 1573 | . 24 . . 8 62 13 84 487 . 33 89 773 Absorbed by Shields . | . . . . . . . . . . . . . Regen/Repaired (Parts) 74 | . . . . . . . . . . . 74 . Core Remaining (%) 71 | 100 . . . 87 88 . . . . 11 . . Volleys Fired 104 | . 13 . . 2 13 . 24 39 . . 8 5 Largest 1 | . 1 . . 1 1 . 1 1 . . 1 1 Hottest 69 | . 40 . . 30 28 . 48 69 . . 39 39 Shots Fired 106 | . 13 . . 2 13 . 24 39 1 1 8 5 Gun 54 | . 13 . . . 13 . . 26 1 1 . . Cannon 32 | . . . . . . . 21 11 . . . . Launcher 20 | . . . . 2 . . 3 2 . . 8 5 Special . | . . . . . . . . . . . . . Kinetic 51 | . . . . . 13 . 21 17 . . . . Thermal 15 | . . . . . . . . 13 1 1 . . Explosive 7 | . . . . 2 . . 3 2 . . . . Electromagnetic 33 | . 13 . . . . . . 7 . . 8 5 Robot Hit Streak 12 | . 3 . . 2 4 . 3 12 . 1 3 1 Robot Miss Streak 5 | . 4 . . . 2 . 3 5 . . 2 2 Penetration Max . | . . . . . . . . . . . . . Secondary Targets . | . . . . . . . . . . . . . Shots Hit Robots 57 | . 6 . . 1 9 . 10 25 . 1 4 1 Core Hits 42 | . 3 . . 3 4 . 8 18 . . 3 3 Critical Kills . | . . . . . . . . . . . . . Critical Parts Destroyed . | . . . . . . . . . . . . . Critical Strikes 4 | . . . . . . . 3 1 . . . . Burn 1 | . . . . . . . . 1 . . . . Blast 3 | . . . . . . . 3 . . . . . Melee Attacks . | . . . . . . . . . . . . . Impact . | . . . . . . . . . . . . . Slashing . | . . . . . . . . . . . . . Piercing . | . . . . . . . . . . . . . Sneak Attacks . | . . . . . . . . . . . . . Combat Hostiles . | . . . . . . . . . . . . . Follow-up Attacks . | . . . . . . . . . . . . . Damage Inflicted 2024 | . 92 . . 220 181 . 401 663 . 10 309 148 Guns 645 | . 67 . . . 181 . . 387 . 10 . . Cannons 421 | . . . . . . . 304 117 . . . . Explosions 939 | . 25 . . 220 . . 97 152 . . 307 138 Melee . | . . . . . . . . . . . . . Ramming 19 | . . . . . . . . 7 . . 2 10 Kinetic 688 | . . . . . 181 . 304 203 . . . . Thermal 244 | . 25 . . . . . . 209 . 10 . . Explosive 469 | . . . . 220 . . 97 152 . . . . Electromagnetic 604 | . 67 . . . . . . 92 . . 307 138 Impact . | . . . . . . . . . . . . . Slashing . | . . . . . . . . . . . . . Piercing . | . . . . . . . . . . . . . Highest Corruption 4 | . . . . . . . . 4 4 4 1 1 Average Corruption 2 | . . . . . . . . 4 4 4 1 1 Corruption Purged . | . . . . . . . . . . . . . Corruption Blocked . | . . . . . . . . . . . . . Effects 28 | . . . . . . . . 11 2 7 5 3 Message Errors 5 | . . . . . . . . 2 . 1 2 . Matter Fused 8 | . . . . . . . . 6 . 1 1 . Heat Flow Errors 2 | . . . . . . . . . . 2 . . Energy Discharges 2 | . . . . . . . . 1 . . . 1 Data Loss (minor) 5 | . . . . . . . . 2 1 1 1 . Data Loss (major) 4 | . . . . . . . . . . 1 1 2 Misfires 2 | . . . . . . . . . 1 1 . . Overload Shots . | . . . . . . . . . . . . . Overflow Damage 94 | . . . . 30 . . 4 25 . . 35 . Projectiles 29 | . . . . . . . 4 25 . . . . Explosions 65 | . . . . 30 . . . . . . 35 . Melee . | . . . . . . . . . . . . . Knockbacks 4 | . . . . . . . 4 . . . . . Impact . | . . . . . . . . . . . . . Kinetic 4 | . . . . . . . 4 . . . . . Secondary . | . . . . . . . . . . . . . Self-Inflicted Damage 123 | . 31 . . . . . 24 17 . . 13 38 Shots 7 | . 1 . . . . . 1 1 . . 2 2 Rammed 8 | . . . . . . . . 8 . . . . Targets Rammed 12 | . . . . . . . . 8 . . 1 3 Kicked 4 | . . . . . . . . . . . 1 3 Crushed . | . . . . . . . . . . . . . Highest Temperature 273 | . 12 . . . 29 5 72 181 17 273 . 6 Average Temperature 59 | . 12 . . . 19 5 32 73 12 109 . 4 Received Heat Transfer 1212 | . 24 . . . 126 36 . 621 . 15 . 390 Siege Activations . | . . . . . . . . . . . . . Robots Corrupted 1 | . . . . . . . . . . . 1 . Combat Hostiles . | . . . . . . . . . . . . . Parts Fried 7 | . . . . . . . . . . . 7 . Impact Corruptions . | . . . . . . . . . . . . . Robots Melted . | . . . . . . . . . . . . . Combat Hostiles . | . . . . . . . . . . . . . Parts Melted 3 | . . . . . . . . 3 . . . . Heat Transferred 555 | . . . . . . . . 518 . 37 . . Parts Sabotaged . | . . . . . . . . . . . . . Parts Stolen . | . . . . . . . . . . . . . Parts Stripped . | . . . . . . . . . . . . . Power Chain Reactions 1 | . 1 . . . . . . . . . . . Alert | -11 -10 -10 -10 -9 -8 -7 -7 -7 -7 -6 -6 -6 ------- Run | Yrd Mat Min Exi Min Mat Fac Low Low Dat Pro Fac Ext Peak Influence 247 | . 103 39 . 101 96 . . . . . 123 247 Initial 60 | . . 39 . . . . . . . . 37 60 Average 47 | . 38 35 . 58 26 . . . . . 57 157 Maximum Alert Level 1 | . . . . . . . . . . . . 1 Low Security (%) 97 | 100 100 100 . 100 100 100 . . . . 100 72 Level 1 2 | . . . . . . . . . . . . 27 Level 2 . | . . . . . . . . . . . . . Level 3 . | . . . . . . . . . . . . . Level 4 . | . . . . . . . . . . . . . Level 5 . | . . . . . . . . . . . . . High Security . | . . . . . . . . . . . . . Max Security . | . . . . . . . . . . . . . Squads Dispatched 12 | . 2 . . . 4 . . 1 . . 4 1 Investigation 6 | . 1 . . . 1 . . 1 . . 2 1 Extermination 1 | . . . . . . . . . . . 1 . Reinforcement 5 | . 1 . . . 3 . . . . . 1 . Assault . | . . . . . . . . . . . . . Garrison . | . . . . . . . . . . . . . Intercept . | . . . . . . . . . . . . . Searches Triggered . | . . . . . . . . . . . . . Data Miner Redirects 1 | . . . . . . . . . . . 1 . Construction Impeded . | . . . . . . . . . . . . . Haulers Reinforced . | . . . . . . . . . . . . . Active Scanning Responses . | . . . . . . . . . . . . . Cargo Convoy Interrupts . | . . . . . . . . . . . . . Stealth | -11 -10 -10 -10 -9 -8 -7 -7 -7 -7 -6 -6 -6 --------- Run | Yrd Mat Min Exi Min Mat Fac Low Low Dat Pro Fac Ext Distress Signals 6 | . 1 . . . . . . . . . 4 1 Communications Jammed . | . . . . . . . . . . . . . Distress Signals . | . . . . . . . . . . . . . Times Spotted 90 | . 9 2 . 4 13 3 4 18 . 9 12 16 Peak Tracking Total 10 | . 5 2 . 4 5 3 4 7 . 4 3 10 Tactical Retreats 15 | . 1 . . . 4 . . 3 . . 1 6 Traps | -11 -10 -10 -10 -9 -8 -7 -7 -7 -7 -6 -6 -6 ------- Run | Yrd Mat Min Exi Min Mat Fac Low Low Dat Pro Fac Ext Traps Triggered 1 | . . . . . . 1 . . . . . . Indirectly . | . . . . . . . . . . . . . Trap Hack Attempts . | . . . . . . . . . . . . . Triggered . | . . . . . . . . . . . . . Disarmed . | . . . . . . . . . . . . . Reprogrammed . | . . . . . . . . . . . . . Reused . | . . . . . . . . . . . . . Traps Extracted . | . . . . . . . . . . . . . Installed . | . . . . . . . . . . . . . Triggered 1 | . . . . . . . . . . 1 . . Machines | -11 -10 -10 -10 -9 -8 -7 -7 -7 -7 -6 -6 -6 ---------- Run | Yrd Mat Min Exi Min Mat Fac Low Low Dat Pro Fac Ext Machines Disabled 7 | . 1 . . . 1 . . 3 . . . 2 Max in Single Turn 1 | . 1 . . . 1 . . 1 . . . 1 Machines Repaired . | . . . . . . . . . . . . . Machines Dismantled . | . . . . . . . . . . . . . Machines Sabotaged . | . . . . . . . . . . . . . Overloaded Fab Kills . | . . . . . . . . . . . . . Hacking | -11 -10 -10 -10 -9 -8 -7 -7 -7 -7 -6 -6 -6 --------- Run | Yrd Mat Min Exi Min Mat Fac Low Low Dat Pro Fac Ext Machines Accessed 23 | . 2 . 4 . 3 2 . 1 4 . 5 2 Terminals 11 | . 2 . . . 3 . . 1 . . 3 2 Fabricators 2 | . . . . . . 2 . . . . . . Repair Stations 1 | . . . . . . . . . . . 1 . Recycling Units 1 | . . . . . . . . . . . 1 . Scanalyzers . | . . . . . . . . . . . . . Garrison Access . | . . . . . . . . . . . . . Total Hacks 110 | . 4 . 49 . 6 4 . 3 29 . 10 5 Successful 92 | . 1 . 49 . 1 1 . 3 29 . 5 3 Failed 17 | . 3 . . . 5 3 . . . . 5 1 Catastrophic 7 | . 2 . . . 2 1 . . . . 2 . Database Lockouts 1 | . . . . . . . . . . . . 1 Manual 17 | . . . 4 . . 1 . . 7 . 5 . Terminals 22 | . 4 . . . 6 . . 3 . . 4 5 Fabricators 4 | . . . . . . 4 . . . . . . Repair Stations 3 | . . . . . . . . . . . 3 . Recycling Units 3 | . . . . . . . . . . . 3 . Scanalyzers . | . . . . . . . . . . . . . Garrison Access . | . . . . . . . . . . . . . Terminal Hacks 87 | . 1 . 49 . 1 . . 3 29 . 1 3 Record 67 | . 1 . 49 . . . . 3 11 . . 3 Part Schematic 10 | . . . . . . . . . 10 . . . Robot Schematic 5 | . . . . . . . . . 5 . . . Robot Analysis 1 | . . . . . 1 . . . . . . . Prototype ID Bank 3 | . . . . . . . . . 3 . . . Open Door 1 | . . . . . . . . . . . 1 . Fabricator Hacks 1 | . . . . . . 1 . . . . . . Network Status 1 | . . . . . . 1 . . . . . . Repair Station Hacks 2 | . . . . . . . . . . . 2 . Scan Component 1 | . . . . . . . . . . . 1 . Repair 1 | . . . . . . . . . . . 1 . Recycling Unit Hacks 2 | . . . . . . . . . . . 2 . Process 1 | . . . . . . . . . . . 1 . Retrieve Matter 1 | . . . . . . . . . . . 1 . Scanalyzer . | . . . . . . . . . . . . . Garrison Access Hacks . | . . . . . . . . . . . . . Unauthorized Hacks . | . . . . . . . . . . . . . Terminals . | . . . . . . . . . . . . . Fabricators . | . . . . . . . . . . . . . Repair Stations . | . . . . . . . . . . . . . Recycling Units . | . . . . . . . . . . . . . Scanalyzers . | . . . . . . . . . . . . . Garrison Access . | . . . . . . . . . . . . . Data Cores Recovered . | . . . . . . . . . . . . . Used . | . . . . . . . . . . . . . Hacking Detections 17 | . 2 . . . 3 2 . 1 . . 7 2 Full Trace Events 6 | . 1 . . . 1 . . 1 . . 2 1 Feedback Events 1 | . . . . . . . . . . . 1 . Corruption 1 | . . . . . . . . . . . 1 . Feedback Blocked . | . . . . . . . . . . . . . Robot Schematics Acquired 5 | . . . . . . . . . 5 . . . Robots Built . | . . . . . . . . . . . . . Authchips . | . . . . . . . . . . . . . Time . | . . . . . . . . . . . . . Total Robot Build Rating . | . . . . . . . . . . . . . Part Schematics Acquired 10 | . . . . . . . . . 10 . . . Parts Built . | . . . . . . . . . . . . . Authchips . | . . . . . . . . . . . . . Time . | . . . . . . . . . . . . . Total Part Build Rating . | . . . . . . . . . . . . . Parts Repaired 1 | . . . . . . . . . . . 1 . Time 13 | . . . . . . . . . . . 13 . Parts Recycled . | . . . . . . . . . . . . . Recycled Matter 32 | . . . . . . . . . . . 32 . Retrieved Matter 32 | . . . . . . . . . . . 32 . Retrieved Components . | . . . . . . . . . . . . . Parts Scanalyzed . | . . . . . . . . . . . . . Part Schematics Acquired . | . . . . . . . . . . . . . Parts Damaged . | . . . . . . . . . . . . . Bothacking | -11 -10 -10 -10 -9 -8 -7 -7 -7 -7 -6 -6 -6 ------------ Run | Yrd Mat Min Exi Min Mat Fac Low Low Dat Pro Fac Ext Used RIF Installer . | . . . . . . . . . . . . . Robots Hacked . | . . . . . . . . . . . . . Non-combat . | . . . . . . . . . . . . . Combat . | . . . . . . . . . . . . . Robot Hacks Applied . | . . . . . . . . . . . . . Relay Couplers Released . | . . . . . . . . . . . . . Fabnet Peak Effective % . | . . . . . . . . . . . . . Robots Rewired . | . . . . . . . . . . . . . Allies Hacked . | . . . . . . . . . . . . . Hacks Repelled . | . . . . . . . . . . . . . Allies | -11 -10 -10 -10 -9 -8 -7 -7 -7 -7 -6 -6 -6 -------- Run | Yrd Mat Min Exi Min Mat Fac Low Low Dat Pro Fac Ext Total Allies 3 | . . . . 2 . . . . . 1 . . Largest Group 2 | . . . . 2 2 . . . . 1 1 . Highest-Rated Group 96 | . . . . 50 50 . . . . 96 96 . Highest-Rated Ally 96 | . . . . 31 31 . . . . 96 96 . Total Orders . | . . . . . . . . . . . . . Ally Attacks 49 | . . . . . 18 . . . . 17 14 . Total Damage 1385 | . . . . . 188 . . . . 606 591 . Kills 19 | . . . . . 2 . . . . 9 8 . Allies Corrupted . | . . . . . . . . . . . . . Allies Melted . | . . . . . . . . . . . . . Intel | -11 -10 -10 -10 -9 -8 -7 -7 -7 -7 -6 -6 -6 ------- Run | Yrd Mat Min Exi Min Mat Fac Low Low Dat Pro Fac Ext Robot Analysis Total 1 | . . . . . 1 . . . . . . . Derelict Logs Recovered 7 | . . 1 . 1 . . 2 2 . 1 . . Drone Launches . | . . . . . . . . . . . . . Drone Recoveries . | . . . . . . . . . . . . . Exploration | -11 -10 -10 -10 -9 -8 -7 -7 -7 -7 -6 -6 -6 ------------- Run | Yrd Mat Min Exi Min Mat Fac Low Low Dat Pro Fac Ext Turns Passed 8082 | 115 175 435 1227 491 1633 350 800 906 114 430 996 410 Spaces Moved 4948 | 60 89 258 765 296 647 270 521 747 94 293 592 316 Core 269 | 45 . . . . 3 . . 217 . . . 4 Treads 1589 | 15 89 258 765 296 166 . . . . . . . Legs 3090 | . . . . . 478 270 521 530 94 293 592 312 Wheels . | . . . . . . . . . . . . . Hover . | . . . . . . . . . . . . . Flight . | . . . . . . . . . . . . . Fastest Speed 50 | 50 160 160 160 160 120 120 120 50 120 120 120 120 Average Speed 134 | 175 160 160 160 160 131 120 120 103 120 120 143 122 Slowest Speed 450 | 200 160 160 160 160 350 120 120 200 120 120 190 450 Overloaded Moves . | . . . . . . . . . . . . . Propulsion Burnouts . | . . . . . . . . . . . . . Robots Hopped . | . . . . . . . . . . . . . Cave-ins Triggered . | . . . . . . . . . . . . . Exploration Rate (%) 44 | 5 23 47 94 53 46 9 62 73 73 45 13 38 Regions Visited 12 Branch Regions 8 Pre-discovered Areas 3 | . . . 1 . . . . 1 1 . . . Known Exits Taken 3 | . . . . . 1 . . . . 1 1 . Unknown Exits Taken 9 | 1 1 1 1 1 . 1 1 1 1 . . . Scrap Searched 9 | . . 1 . 1 . . 2 2 . 3 . . Spaces Dug . | . . . . . . . . . . . . . Terrain Destroyed 49 | . 3 . . 16 . . 14 16 . . . . Melee . | . . . . . . . . . . . . . Projectile 5 | . . . . . . . 5 . . . . . AOE 44 | . 3 . . 16 . . 9 16 . . . . Terrain Rammed . | . . . . . . . . . . . . . Walls Destroyed . | . . . . . . . . . . . . . Machines Disabled . | . . . . . . . . . . . . . Actions | -11 -10 -10 -10 -9 -8 -7 -7 -7 -7 -6 -6 -6 --------- Run | Yrd Mat Min Exi Min Mat Fac Low Low Dat Pro Fac Ext Total 6301 | 70 110 280 769 312 1421 298 672 838 94 372 733 332 Wait 1096 | . 1 21 1 11 731 14 116 24 . 68 109 . Move 4936 | 59 88 257 764 295 646 269 520 746 93 292 591 316 Hop . | . . . . . . . . . . . . . Pick Up 56 | 6 3 2 1 2 11 3 4 10 . 6 7 1 Fast Attach 3 | . . . . . . . . . . . 3 . Attach 60 | 5 3 . 1 1 11 7 5 11 . 5 7 4 Detach 10 | . . . 1 1 1 5 . . . . 2 . Swap 4 | . . . . . 1 . 1 . 1 . 1 . Drop 17 | . 2 . 1 . 7 . 2 . . 1 4 . Fire 104 | . 13 . . 2 13 . 24 39 . . 8 5 Melee . | . . . . . . . . . . . . . Ram 8 | . . . . . . . . 8 . . . . Kick 4 | . . . . . . . . . . . 1 3 Crush . | . . . . . . . . . . . . . Escape Stasis . | . . . . . . . . . . . . . Rewire 3 | . . . . . . . . . . . . 3 Trap . | . . . . . . . . . . . . . Miscellaneous . | . . . . . . . . . . . . . Route ------- -11/Scrapyard -10/Materials -10/Mines (discovered 3 exits: [*Mat x2] / *Exi) -10/Exiles (discovered 2 exits: [*Min x2]) -9/Mines -8/Materials (discovered 2 exits: *Fac / Sto) -7/Factory -7/Lower Caves -7/Lower Caves -7/Data Miner -6/Proximity Caves -6/Factory (discovered 3 exits: Fac / *Ext x2) -6/Extension History --------- Turn | Location | Event 21 | -11/Scrapyard | Discovered new exit (range 16) 116 | -11/Scrapyard | Entered Materials 262 | -10/Materials | Discovered new exit (range 13) 291 | -10/Materials | Entered Mines 316 | -10/Mines | Build established: Mutant 385 | -10/Mines | Learned Materials trap positions 517 | -10/Mines | Discovered new exit (range 7) 672 | -10/Mines | Deemed a non-threat by the Exiles lab entrance 674 | -10/Mines | Discovered new exit (range 5) 705 | -10/Mines | Discovered new exit (range 15) 726 | -10/Mines | Entered Exiles 769 | -10/Exiles | Met 8R-AWN 793 | -10/Exiles | Met EX-HEX 891 | -10/Exiles | Met EX-DEC 929 | -10/Exiles | Learned location of Zion (-6) 1006 | -10/Exiles | Discovered new exit (range 14) 1126 | -10/Exiles | Visited The Gauntlet 1346 | -10/Exiles | Met EX-BIN 1378 | -10/Exiles | Aligned with FarCom system 1380 | -10/Exiles | Given EX-Vault access code 1454 | -10/Exiles | Opened EX-Vault 1510 | -10/Exiles | Warned to stay clear of 0b10 Research branches 1650 | -10/Exiles | Discovered new exit (range 14) 1953 | -10/Exiles | Entered Mines 2408 | -9/Mines | Learned location of 2 exits from Materials 2417 | -9/Mines | Discovered new exit (range 7) 2444 | -9/Mines | Entered Materials 2444 | -8/Materials | Accompanied by 2 allies 2444 | -8/Materials | Evolved 4 slots: Propulsion x1, Utility x3 2445 | -8/Materials | Identified exit to Factory 2445 | -8/Materials | Identified exit to Storage 2446 | -8/Materials | Loaded intel: 14 trap records 2449 | -8/Materials | Led the pair of lost Derelicts to an unsafe place 2815 | -8/Materials | Build established: Skirmisher 3119 | -8/Materials | Build established: Mutant 4077 | -8/Materials | Entered Factory 4077 | -7/Factory | Evolved 2 slots: Propulsion x1, Utility x1 4410 | -7/Factory | Discovered new exit (range 6) 4427 | -7/Factory | Entered Lower Caves 4516 | -7/Lower Caves | Lost 3 parts (1n2u) 4863 | -7/Lower Caves | Learned location of 2 exits from Factory 5111 | -7/Lower Caves | Learned Factory emergency access door positions 5204 | -7/Lower Caves | Discovered new exit (range 13) 5227 | -7/Lower Caves | Entered another Lower Caves area 5415 | -7/Lower Caves | Attracted the attention of an 0b10 base 5473 | -7/Lower Caves | Core integrity fell below 50% 5527 | -7/Lower Caves | Lost 12 parts (2p3n3u4w) 5616 | -7/Lower Caves | Learned 8 Factory zone layouts 5668 | -7/Lower Caves | Encountered a Warlord checkpoint 5827 | -7/Lower Caves | Core integrity fell below 20% 6038 | -7/Lower Caves | Learned location of Extension (-6) 6121 | -7/Lower Caves | Discovered new exit (range 7) 6133 | -7/Lower Caves | Entered Data Miner 6133 | -7/Data Miner | Discovered new exit (range 6) 6164 | -7/Data Miner | Met Data Miner 6189 | -7/Data Miner | Learned location of Section 7 (-2) 6189 | -7/Data Miner | Acquired the access code to Warlord's prototype stash 6212 | -7/Data Miner | Received God Mode back door access code from Data Miner 6247 | -7/Data Miner | Entered Proximity Caves 6311 | -6/Proximity Caves | Escorted by Enhanced Grunt 6433 | -6/Proximity Caves | Identified exit to Factory 6493 | -6/Proximity Caves | Attracted the attention of an 0b10 checkpoint 6677 | -6/Proximity Caves | Entered Factory 6677 | -6/Factory | Accompanied by 1 ally 6677 | -6/Factory | Evolved 2 slots: Power x1, Utility x1 6678 | -6/Factory | Identified exit to Extension 6678 | -6/Factory | Identified exit to Factory 6688 | -6/Factory | Build established: Scavenger-Mutant 6975 | -6/Factory | Repaired Aluminum Leg? 6978 | -6/Factory | Incoming investigation squad redirected 7229 | -6/Factory | Build established: Mutant 7670 | -6/Factory | Discovered exit to Extension (range 5) 7673 | -6/Factory | Entered Extension 7731 | -6/Extension | Central database locked down 7869 | -6/Extension | Build established: Scavenger-Mutant 8076 | -6/Extension | Core integrity fell below 50% 8082 | -6/Extension | Core integrity fell below 20% 8083 | -6/Extension | Destroyed by G-50 Soldier with Heavy Laser Last Messages --------------- Lgt. Nuclear Core destroyed. Carbon-fiber Leg destroyed. Imp. Terrain Scanner destroyed. Flexi-carbon Leg destroyed. Slug penetrates M3-RDA(l). 8V-P0C(l) destroyed. Slug penetrates Wall. Imp. EM Pulse Cannon destroyed. Imp. Trap Scanner destroyed. Acquired Myomer Leg. Adv. Weight Redist. System destroyed. Mic. Nuclear Core destroyed. Imp. Cryofiber Web destroyed. Penetrated by Slug. Myomer Leg destroyed. Slug penetrates Wall. Penetrated by Slug. Slug penetrates Wall. Penetrated by Slug. M3-RDA(l) destroyed. Map ----- +----------------------------------------------------+ | | | | | | | | | | | | | | | | | | | | | | | | | | | | | | | | | ?????????????????????????????????????????????????? | | ?????????????????????????????????????????????????? | | ?????????????????????????????????????????????????? | | ?????????????????????????????????????????????????? | | ?????????????????????????????#####???????????????? | | ???????????????????########? +?Y?????????????? | | ?????????????####### Y # #oY?????????????? | | ?????????????# gg[h # #???????????????? | | ############## ###gY% h +???????????????? | | #?# hgg @# #???????????????? | | ############## #?# g / #??????????????????????? | | #????????????# #?# Y #??????????????????????? | | #???????????? #########??????????????????????? | | #???????????# #??????????????????????????????? | | #??????????? = ?????????w???????????????????? | | #??????????## ###????????????????????????????? | | #???????????# #??????????????????????????????? | | #???????????#######??????????????????????????????? | | #????????????????????????????????????????????????? | | ?????????????????????????????????????????????????? | | ?????????????????????????????????????????????????? | | ?????????????????????????????????????????????????? | | ?????????????????????????????????????????????????? | | ?????????????????????????????????????????????????? | | ?????????????????????????????????????????????????? | | ?????###?????????????????????????????????????????? | | ?#?#?#?#?#?#???##???#?????#??????????????????????? | | ?####?#???#??###?##??#?##????????????????????????? | | ??#??#?###??#?##?#??#?###??#?????????????????????? | | ?##??##??###?###??##???##??##?#??????????????????? | | ??#?####?####?##?###???????##?#??????????????????? | | #?#?#?###?####?#?#?#?####?##????#????????????????? | | ###?##??#####??####?#####????????????????????????? | | #?###?#??###? ??##?##?##??????#??????????????????? | +----------------------------------------------------+ Best States ------------- Heat Dissipation 37 Energy Generation 16 Energy Capacity 640 Matter Stores 300 Matter Capacity 300 Sight Range 16 Terrain Scan Range 16 Terrain Scan Density 210 Additional Mass Support 9 Base Temperature (-) 150 Armor Coverage 150 Melee Speed Boost 20 Evasion (%) 55 Recoil Reduction 2 Kinecelleration 30 Offensive Hacking 10 Authchip Count 1 Item Schematics ----------------- Combat Drone Bay | -7/Data Miner | Free Cld. Aerolev Unit | -7/Data Miner | Free Gravity Neutralizer | -7/Data Miner | Free Lgt. Regenerative Plating | -7/Data Miner | Free Imp. Lightning Gun | -7/Data Miner | Free Field Propulsion Drive | -7/Data Miner | Free Disruptor Cannon | -7/Data Miner | Free Hvy. Shock Bomb Launcher | -7/Data Miner | Free Adv. Shield Generator | -7/Data Miner | Free Railgun | -7/Data Miner | Free Robot Schematics ------------------ H-55 Commando | -7/Data Miner | Free Y-54 Guardian | -7/Data Miner | Free X-62 Marksman | -7/Data Miner | Free G-47 Trooper | -7/Data Miner | Free R-10 Processor | -7/Data Miner | Free Fabricated ------------ Nothing Alien Tech Used ----------------- None Achievements -------------- Librarian Omniscient Cartographer The Oracle Challenges ------------ None Game ------ Seed FlightZioniteField Manual? 0 Play Time 01:23:43 Cumulative 6.2 hours Start 2024.04.07 @ 16:08:07 End 2024.04.13 @ 18:14:44 Sessions 2 Manual Loads 0 Difficulty Rogue Special Mode None Game No. 11 Rogue 11 Adventurer 0 Explorer 0 Win Type - Total 0 Types 0/0/0/0/0/0/0/0/0 Lore% 16 Gallery% 12 Achievement% 12 Wizard Run 0 Options --------- Layout 1 ASCII 0 Keyboard 0 Movement Mouse Keybinds 0 Fullscreen 1 Font 24/Smallcaps Map View 50x35 Zoom Use 0% Tactical HUD 0 Map Filters NONE Filters NONE Steam 1 RUN: 6e888c73-c19b-419f-bac9-5686f1ee26ad